[Event "Turkish Championship 2020"]
[Site "Kemer-Antalya"]
[Date "2020.11.20"]
[Round "8.1"]
[White "Atalik, Ekaterina"]
[Black "Ozen, Deniz"]
[Result "1/2-1/2"]
[ECO "D94"]
[WhiteElo "2450"]
[BlackElo "2412"]
[Annotator "ChessBase"]
[PlyCount "100"]
[EventDate "2020.11.13"]
[EventType "tourn"]
[EventCountry "TUR"]
[SourceTitle "playchess.com"]
[Source "ChessBase"]
[SourceQuality "1"]
[TimeControl "40/5400+30:1800+30"]

1. Nf3 {[%emt 0:00:30]} d5 {[%emt 0:00:30]} 2. e3 {[%emt 0:02:30]} Nf6 {[%emt 0:01:30]} 3. c4 {[%emt 0:00:00]} c6 {[%emt 0:00:30]} 4. Nc3 {[%emt 0:00:00]} g6 {[%emt 0:00:30]} 5. d4 {[%emt 0:00:30]} Bg7 {[%emt 0:00:00]} 6. Be2 {[%emt 0:00:00]} O-O {[%emt 0:00:00]} 7. O-O {[%emt 0:00:00]} a6 {[%emt 0:06:30]} 8. a4 {[%emt 0:00:30]} a5 {[%emt 0:00:30]} 9. cxd5 {[%emt 0:00:30]} cxd5 {[%emt 0:00:00]} 10. Qb3 {[%emt 0:00:30]} Nc6 {[%emt 0:04:00]} 11. Bd2 {[%emt 0:00:30]} Rb8 {[%emt 0:14:30]} 12. Rfc1 {[%emt 0:06:30]} Bg4 {[%emt 0:00:30]} 13. h3 {[%emt 0:06:30]} Bxf3 {[%emt 0:00:30]} 14. Bxf3 {[%emt 0:00:00]} e6 {[%emt 0:00:30]} 15. Be2 {[%emt 0:05:00]} Re8 {[%emt 0:01:30]} 16. Bb5 {[%emt 0:01:30]} e5 {[%emt 0:31:30]} 17. dxe5 {[%emt 0:03:30]} Rxe5 {[%emt 0:00:30]} 18. Ne2 {[%emt 0:04:30]} Ne4 {[%emt 0:00:30]} 19. Be1 {[%emt 0:08:30]} Rc8 {[%emt 0:14:30]} 20. Rc2 {[%emt 0:14:30]} Nb4 {[%emt 0:11:29]} 21. Rxc8 {[%emt 0:03:30]} Qxc8 {[%emt 0:00:30]} 22. Rc1 {[%emt 0:00:30]} Qf8 {[%emt 0:00:43]} 23. Rc7 {[%emt 0:05:30]} Qb8 {[%emt 0:00:30]} 24. Rc1 {[%emt 0:01:30]} Qf8 {[%emt 0:00:05]} 25. Nf4 {[%emt 0:03:30]} Nc5 {[%emt 0:01:01]} 26. Qd1 {[%emt 0:03:30]} Qd6 {[%emt 0:04:20]} 27. Bc3 {[%emt 0:01:30]} b6 {[%emt 0:01:20]} 28. Bxe5 {[%emt 0:01:30]} Bxe5 {[%emt 0:00:01]} 29. Qf3 {[%emt 0:03:30]} Bxb2 {[%emt 0:01:27]} 30. Rd1 {[%emt 0:00:30]} d4 {[%emt 0:00:29]} 31. exd4 {[%emt 0:01:30]} Bxd4 {[%emt 0:00:02]} 32. g3 {[%emt 0:07:21]} Qf6 {[%emt 0:02:47]} 33. Kg2 {[%emt 0:00:56]} Be5 {[%emt 0:00:12]} 34. Nd5 {[%emt 0:04:25]} Qe6 {[%emt 0:00:58]} 35. Ne3 {[%emt 0:00:53]} Kg7 {[%emt 0:00:52]} 36. Ng4 {[%emt 0:03:25]} h5 {[%emt 0:00:41]} 37. Nxe5 {[%emt 0:00:30]} Qxe5 {[%emt 0:00:00]} 38. Rd2 {[%emt 0:02:22]} f5 {[%emt 0:01:51]} 39. Qa8 {[%emt 0:01:12]} h4 {[%emt 0:00:49]} 40. Rd8 {[%emt 0:00:00]} hxg3 {[%emt 0:00:00]} 41. Qa7+ {[%emt 0:15:56]} Kh6 {[%emt 0:05:53]} 42. Qb8 {[%emt 0:01:30]} Qxb8 {[%emt 0:12:10]} 43. Rxb8 {[%emt 0:00:30]} gxf2 {[%emt 0:00:00]} 44. Rxb6 {[%emt 0:06:59]} Nd5 {[%emt 0:02:48]} 45. Rc6 {[%emt 0:00:58]} Ne4 {[%emt 0:00:41]} 46. Ra6 {[%emt 0:06:18]} Ne3+ {[%emt 0:01:47]} 47. Kf3 {[%emt 0:00:05]} f1=Q+ {[%emt 0:00:00]} 48. Bxf1 {[%emt 0:00:30]} Nxf1 {[%emt 0:00:00]} 49. Rxa5 {[%emt 0:00:00]} Nfd2+ {[%emt 0:02:33]} 50. Kf4 {[%emt 0:00:06]} Nc3 {[%emt 0:01:06]} 1/2-1/2

[Event "Turkish Championship 2020"]
[Site "Kemer-Antalya"]
[Date "2020.11.20"]
[Round "8.2"]
[White "Sanal, Vahap"]
[Black "Firat, Burak"]
[Result "1-0"]
[ECO "A07"]
[WhiteElo "2557"]
[BlackElo "2474"]
[Annotator "ChessBase"]
[PlyCount "75"]
[EventDate "2020.11.13"]
[EventType "tourn"]
[EventCountry "TUR"]
[SourceTitle "playchess.com"]
[Source "ChessBase"]
[SourceQuality "1"]
[TimeControl "40/5400+30:1800+30"]

1. Nf3 {[%emt 0:01:30]} Nf6 {[%emt 0:01:30]} 2. b3 {[%emt 0:00:30]} d5 {[%emt 0:01:30]} 3. Bb2 {[%emt 0:00:30]} Bf5 {[%emt 0:03:30]} 4. g3 {[%emt 0:00:30]} e6 {[%emt 0:00:30]} 5. Bg2 {[%emt 0:00:30]} h6 {[%emt 0:00:30]} 6. O-O {[%emt 0:00:30]} Be7 {[%emt 0:00:30]} 7. d3 {[%emt 0:01:30]} O-O {[%emt 0:01:30]} 8. Nbd2 {[%emt 0:00:30]} Bh7 {[%emt 0:01:30]} 9. Nh4 {[%emt 0:04:30]} Nfd7 {[%emt 0:13:30]} 10. e4 {[%emt 0:05:30]} Bf6 {[%emt 0:15:30]} 11. Bxf6 {[%emt 0:22:30]} Nxf6 {[%emt 0:00:00]} 12. e5 {[%emt 0:02:30]} Nfd7 {[%emt 0:02:00]} 13. f4 {[%emt 0:00:30]} c5 {[%emt 0:08:30]} 14. c4 {[%emt 0:04:30]} Bxd3 {[%emt 0:02:30]} 15. cxd5 {[%emt 0:13:30]} exd5 {[%emt 0:07:30]} 16. Bxd5 {[%emt 0:05:30]} Nc6 {[%emt 0:03:30]} 17. Bxc6 {[%emt 0:01:30]} bxc6 {[%emt 0:02:30]} 18. Rf2 {[%emt 0:00:30]} Nb6 {[%emt 0:02:30]} 19. Rc1 {[%emt 0:01:30]} Qd5 {[%emt 0:17:48]} 20. Qg4 {[%emt 0:01:30]} a5 {[%emt 0:04:02]} 21. a4 {[%emt 0:09:30]} c4 {[%emt 0:01:25]} 22. bxc4 {[%emt 0:01:30]} Qe6 {[%emt 0:00:25]} 23. f5 {[%emt 0:03:05]} Qxe5 {[%emt 0:00:33]} 24. f6 {[%emt 0:00:09]} g6 {[%emt 0:01:19]} 25. Ndf3 {[%emt 0:00:32]} Qe4 {[%emt 0:00:33]} 26. Qh3 {[%emt 0:00:45]} Rfe8 {[%emt 0:02:12]} 27. g4 {[%emt 0:05:45]} Re6 {[%emt 0:01:07]} 28. Nf5 {[%emt 0:03:20]} Rxf6 {[%emt 0:01:58]} 29. Nxh6+ {[%emt 0:01:48]} Kg7 {[%emt 0:00:23]} 30. g5 {[%emt 0:03:03]} Rf4 {[%emt 0:00:06]} 31. Qg3 {[%emt 0:02:09]} Re8 {[%emt 0:03:23]} 32. Nd2 {[%emt 0:01:08]} Qe1+ {[%emt 0:00:30]} 33. Rxe1 {[%emt 0:00:00]} Rxe1+ {[%emt 0:00:09]} 34. Kg2 {[%emt 0:00:12]} Rxf2+ {[%emt 0:00:00]} 35. Kxf2 {[%emt 0:00:00]} Re2+ {[%emt 0:00:12]} 36. Kg1 {[%emt 0:00:00]} Rxd2 {[%emt 0:00:12]} 37. Qe5+ {[%emt 0:00:52]} Kh7 {[%emt 0:00:00]} 38. Qe8 {[%emt 0:00:28]} 1-0

[Event "Turkish Championship 2020"]
[Site "Kemer-Antalya"]
[Date "2020.11.20"]
[Round "8.3"]
[White "Yurtseven, Melih"]
[Black "Tarlabasi, Emirhan"]
[Result "1-0"]
[ECO "D36"]
[WhiteElo "2391"]
[BlackElo "2275"]
[Annotator "NA"]
[PlyCount "89"]
[EventDate "2020.11.13"]
[EventType "tourn"]
[EventCountry "TUR"]
[SourceTitle "playchess.com"]
[Source "ChessBase"]
[SourceQuality "1"]
[TimeControl "40/5400+30:1800+30"]

1. d4 {[%emt 0:03:30]} d5 {[%emt 0:00:30]} 2. c4 {[%emt 0:00:30]} e6 {[%emt 0:00:30]} 3. Nc3 {[%emt 0:00:00]} Nf6 {[%emt 0:00:30]} 4. cxd5 {[%emt 0:00:00]} exd5 {[%emt 0:00:30]} 5. Bg5 {[%emt 0:00:30]} c6 {[%emt 0:00:30]} 6. e3 {[%emt 0:00:30]} Be7 {[%emt 0:01:30]} 7. Bd3 {[%emt 0:00:00]} Nbd7 {[%emt 0:00:30]} 8. Nge2 {[%emt 0:00:00]} O-O {[%emt 0:01:30]} 9. Qc2 {[%emt 0:00:30]} Re8 {[%emt 0:01:30]} 10. O-O {[%emt 0:01:30]} Nf8 {[%emt 0:00:30]} 11. Rab1 {[%emt 0:00:30]} g6 {[%emt 0:12:30]} 12. Nf4 {[%emt 0:00:30]} b6 {[%emt 0:06:30]} 13. b4 {[%emt 0:08:30]} Bb7 {[%emt 0:04:30]} 14. Rfd1 {[%emt 0:03:30]} Rc8 {[%emt 0:04:30]} 15. Qa4 {[%emt 0:04:30]} Qd7 {[%emt 0:13:30]} 16. Bxf6 $14 {[%emt 0:19:30]} ({But not} 16. Qxa7 $6 Ra8 $11) 16... Bxf6 {[%emt 0:01:30]} 17. Ba6 {[%emt 0:00:30]} Bxa6 {[%emt 0:07:30]} 18. Qxa6 {[%emt 0:00:30]} Ne6 {[%emt 0:03:30]} 19. Nce2 {[%emt 0:01:30]} Bg5 {[%emt 0:14:30]} 20. Nd3 {[%emt 0:01:30]} Bf6 {[%emt 0:08:31]} 21. Nef4 {[%emt 0:10:30]} Bg7 {[%emt 0:04:49]} 22. Rbc1 {[%emt 0:05:30]} g5 {[%emt 0:09:20]} 23. Nh5 {[%emt 0:04:30]} f6 {[%emt 0:00:02]} 24. Rc2 {[%emt 0:00:30]} Rc7 {[%emt 0:00:27]} 25. Rdc1 {[%emt 0:01:30]} Rec8 {[%emt 0:00:05]} 26. h3 {[%emt 0:00:30]} Qf7 {[%emt 0:01:10]} 27. g4 {[%emt 0:06:30]} Bf8 {[%emt 0:00:12]} 28. Ng3 {[%emt 0:01:30]} Qd7 {[%emt 0:00:46]} 29. Nf5 {[%emt 0:02:30]} h5 {[%emt 0:00:35]} 30. Ng3 {[%emt 0:10:16]} hxg4 {[%emt 0:01:07]} 31. hxg4 {[%emt 0:00:01]} Ng7 {[%emt 0:00:06]} 32. b5 {[%emt 0:02:07]} Bd6 {[%emt 0:00:57]} 33. bxc6 {[%emt 0:04:04]} Qxg4 {[%emt 0:00:12]} 34. Qb5 {[%emt 0:00:14]} Bxg3 {[%emt 0:01:28]} 35. Qxd5+ {[%emt 0:00:08]} Kf8 {[%emt 0:00:24]} 36. fxg3 {[%emt 0:00:34]} Qxg3+ {[%emt 0:00:25]} 37. Kh1 {[%emt 0:04:03]} Ne6 {[%emt 0:00:52]} 38. Rh2 {[%emt 0:00:27]} Re7 {[%emt 0:00:30]} 39. Qf5 {[%emt 0:01:27]} Rf7 {[%emt 0:00:31]} 40. Qxe6 {[%emt 0:00:00]} Qf3+ {[%emt 0:00:00]} 41. Kg1 {[%emt 0:03:39]} Kg7 {[%emt 0:07:31]} 42. Rf1 {[%emt 0:02:30]} Qxc6 {[%emt 0:01:30]} 43. Rh7+ {[%emt 0:00:30]} Kxh7 {[%emt 0:00:00]} 44. Qxf7+ {[%emt 0:00:00]} Kh8 {[%emt 0:00:00]} 45. Rxf6 {[%emt 0:01:00]} 1-0

[Event "Turkish Championship 2020"]
[Site "Kemer-Antalya"]
[Date "2020.11.20"]
[Round "8.4"]
[White "Haznedaroglu, Kivanc"]
[Black "Sevgi, Volkan"]
[Result "1/2-1/2"]
[ECO "A04"]
[WhiteElo "2437"]
[BlackElo "2359"]
[Annotator "NA"]
[PlyCount "93"]
[EventDate "2020.11.13"]
[EventType "tourn"]
[EventCountry "TUR"]
[SourceTitle "playchess.com"]
[Source "ChessBase"]
[SourceQuality "1"]
[TimeControl "40/5400+30:1800+30"]

1. Nf3 {[%emt 0:01:30]} c5 {[%emt 0:04:30]} 2. g3 {[%emt 0:00:00]} Nc6 {[%emt 0:00:00]} 3. Bg2 {[%emt 0:05:00]} g6 {[%emt 0:00:00]} 4. d4 {[%emt 0:00:30]} cxd4 {[%emt 0:01:30]} 5. Nxd4 {[%emt 0:00:30]} Bg7 {[%emt 0:00:00]} 6. Nb3 {[%emt 0:00:00]} d6 {[%emt 0:03:00]} 7. Nc3 {[%emt 0:01:00]} Be6 {[%emt 0:02:30]} 8. Nd5 {[%emt 0:08:30]} Rc8 {[%emt 0:08:30]} 9. c3 {[%emt 0:01:30]} Qd7 {[%emt 0:04:30]} 10. h4 {[%emt 0:10:30]} h6 {[%emt 0:26:30]} 11. Nf4 {[%emt 0:12:30]} Bc4 {[%emt 0:01:30]} 12. Nd2 {[%emt 0:00:30]} Ba6 {[%emt 0:01:30]} 13. Bh3 {[%emt 0:00:30]} e6 {[%emt 0:00:00]} 14. Ne4 {[%emt 0:01:30]} Rd8 {[%emt 0:00:00]} 15. Be3 {[%emt 0:05:30]} Nf6 {[%emt 0:10:30]} 16. Nxf6+ {[%emt 0:10:30]} Bxf6 $11 {[%emt 0:00:30]} 17. Qc2 {[%emt 0:01:30]} Ne7 {[%emt 0:08:30]} 18. O-O {[%emt 0:04:30]} Qc7 {[%emt 0:06:15]} 19. Rfd1 {[%emt 0:08:30]} d5 {[%emt 0:09:24]} 20. Bxe6 {[%emt 0:08:23]} fxe6 {[%emt 0:00:22]} 21. Nxe6 {[%emt 0:00:01]} Qc6 {[%emt 0:01:09]} 22. Nxd8 {[%emt 0:01:09]} Kxd8 {[%emt 0:00:02]} 23. Qd2 {[%emt 0:02:43]} g5 {[%emt 0:02:51]} 24. hxg5 {[%emt 0:00:20]} hxg5 {[%emt 0:00:09]} 25. Bxg5 {[%emt 0:00:23]} Bxg5 {[%emt 0:02:14]} 26. Qxg5 {[%emt 0:00:02]} Bxe2 {[%emt 0:00:00]} 27. Rd4 {[%emt 0:02:13]} Bf3 {[%emt 0:02:06]} 28. Rh4 {[%emt 0:00:05]} Rxh4 {[%emt 0:00:00]} 29. Qxh4 {[%emt 0:00:04]} Qe6 {[%emt 0:00:03]} 30. Qf4 {[%emt 0:00:49]} Qe4 {[%emt 0:01:09]} 31. Kh2 {[%emt 0:09:50]} Qh7+ {[%emt 0:02:06]} 32. Qh4 {[%emt 0:00:30]} Qc2 {[%emt 0:00:00]} 33. g4 {[%emt 0:01:54]} Qxb2 {[%emt 0:00:00]} 34. Re1 {[%emt 0:00:36]} Be4 {[%emt 0:00:00]} 35. Qh8+ {[%emt 0:01:25]} Kd7 {[%emt 0:00:23]} 36. Qd4 {[%emt 0:00:00]} Nc6 {[%emt 0:00:56]} 37. Qg7+ {[%emt 0:00:00]} Ne7 {[%emt 0:01:28]} 38. Kg3 {[%emt 0:00:20]} Qd2 {[%emt 0:00:28]} 39. Re3 {[%emt 0:00:09]} Qc1 {[%emt 0:00:48]} 40. Kf4 {[%emt 0:00:00]} Qg1 {[%emt 0:00:00]} 41. f3 {[%emt 0:07:04]} Qh2+ {[%emt 0:11:07]} 42. Kg5 {[%emt 0:00:30]} Qf2 {[%emt 0:00:30]} 43. Qd4 {[%emt 0:10:33]} Nc6 {[%emt 0:01:30]} 44. Qg7+ {[%emt 0:00:07]} Ne7 {[%emt 0:00:30]} 45. Qd4 {[%emt 0:12:42]} Nc6 {[%emt 0:00:30]} 46. Qg7+ {[%emt 0:00:30]} Ne7 {[%emt 0:00:00]} 47. Qd4 {[%emt 0:00:00]} 1/2-1/2

[Event "Turkish Championship 2020"]
[Site "Kemer-Antalya"]
[Date "2020.11.20"]
[Round "8.5"]
[White "Eren, Ataberk"]
[Black "Gokerkan, Cem Kaan"]
[Result "0-1"]
[ECO "D02"]
[WhiteElo "2321"]
[BlackElo "2461"]
[Annotator "ChessBase"]
[PlyCount "102"]
[EventDate "2020.11.13"]
[EventType "tourn"]
[EventCountry "TUR"]
[SourceTitle "playchess.com"]
[Source "ChessBase"]
[SourceQuality "1"]
[TimeControl "40/5400+30:1800+30"]

1. d4 {[%emt 0:02:30]} Nf6 {[%emt 0:00:30]} 2. Nf3 {[%emt 0:01:30]} e6 {[%emt 0:00:00]} 3. Bf4 {[%emt 0:00:00]} d5 {[%emt 0:00:00]} 4. e3 {[%emt 0:00:00]} Bd6 {[%emt 0:00:30]} 5. Bg3 {[%emt 0:01:30]} O-O {[%emt 0:00:30]} 6. Nbd2 {[%emt 0:00:00]} c5 {[%emt 0:00:00]} 7. c3 {[%emt 0:03:00]} Qc7 {[%emt 0:02:00]} 8. dxc5 {[%emt 0:17:30]} Qxc5 {[%emt 0:00:30]} 9. Bd3 {[%emt 0:00:00]} Nbd7 {[%emt 0:00:30]} 10. e4 {[%emt 0:00:00]} dxe4 {[%emt 0:01:30]} 11. Bxe4 {[%emt 0:00:30]} Bxg3 {[%emt 0:00:30]} 12. hxg3 {[%emt 0:00:30]} Ne5 {[%emt 0:01:30]} 13. Nxe5 {[%emt 0:22:30]} Qxe5 {[%emt 0:03:30]} 14. f4 {[%emt 0:01:30]} Qc5 {[%emt 0:20:30]} 15. Qf3 {[%emt 0:02:30]} Bd7 {[%emt 0:33:30]} 16. g4 {[%emt 0:21:30]} Rfd8 {[%emt 0:05:30]} 17. O-O-O {[%emt 0:09:47]} Ba4 {[%emt 0:03:30]} 18. Rde1 {[%emt 0:01:44]} h6 {[%emt 0:05:37]} 19. g5 {[%emt 0:02:26]} hxg5 {[%emt 0:00:35]} 20. Qh3 {[%emt 0:05:39]} Kf8 {[%emt 0:00:59]} 21. Rhf1 {[%emt 0:03:31]} gxf4 {[%emt 0:07:33]} 22. Qh8+ {[%emt 0:00:43]} Ke7 {[%emt 0:00:18]} 23. Qxg7 {[%emt 0:00:16]} Rxd2 {[%emt 0:05:48]} 24. Bg6 {[%emt 0:01:15]} Be8 {[%emt 0:03:56]} 25. Bxf7 {[%emt 0:01:24]} Bxf7 {[%emt 0:00:36]} 26. Rxf4 {[%emt 0:00:10]} Rd1+ {[%emt 0:01:31]} 27. Kxd1 {[%emt 0:00:20]} Qh5+ {[%emt 0:00:12]} 28. Kc1 {[%emt 0:01:10]} Qg6 {[%emt 0:00:07]} 29. Qxg6 {[%emt 0:00:14]} Bxg6 {[%emt 0:00:01]} 30. g4 {[%emt 0:00:19]} Rg8 {[%emt 0:01:06]} 31. Ra4 {[%emt 0:00:10]} Ra8 {[%emt 0:01:00]} 32. Rb4 {[%emt 0:00:22]} b6 {[%emt 0:00:18]} 33. a4 {[%emt 0:00:15]} Rf8 {[%emt 0:01:07]} 34. Rd4 {[%emt 0:01:09]} Rh8 {[%emt 0:00:16]} 35. a5 {[%emt 0:00:34]} Rh2 {[%emt 0:00:53]} 36. Rd2 {[%emt 0:00:54]} Rh4 {[%emt 0:01:00]} 37. Rde2 {[%emt 0:00:29]} Bf7 {[%emt 0:00:33]} 38. g5 {[%emt 0:00:30]} Nd5 {[%emt 0:00:00]} 39. axb6 {[%emt 0:00:10]} axb6 {[%emt 0:00:00]} 40. Rd2 {[%emt 0:00:00]} Nf4 {[%emt 0:00:00]} 41. Red1 {[%emt 0:06:59]} Be8 {[%emt 0:04:34]} 42. b3 {[%emt 0:02:30]} Rg4 {[%emt 0:01:30]} 43. Ra2 {[%emt 0:03:30]} Rxg5 {[%emt 0:01:30]} 44. Ra7+ {[%emt 0:00:30]} Kf6 {[%emt 0:00:30]} 45. Rd8 {[%emt 0:00:30]} Bg6 {[%emt 0:07:09]} 46. Rb7 {[%emt 0:07:47]} Rg2 {[%emt 0:11:37]} 47. Rd2 {[%emt 0:04:07]} Nd3+ {[%emt 0:01:33]} 48. Kd1 {[%emt 0:00:05]} Rg1+ {[%emt 0:00:38]} 49. Ke2 {[%emt 0:00:30]} Re1+ {[%emt 0:00:00]} 50. Kf3 {[%emt 0:00:10]} Be4+ {[%emt 0:00:00]} 51. Kg4 {[%emt 0:00:25]} Ne5+ {[%emt 0:00:00]} 0-1